bitfinex/quotes_BTCUSD_20251215
["timestamp","ask_amount","ask_price","bid_price","bid_amount"]
[1765820803853,0.00099999,86030.0,86024.0,0.01162466]
[1765820804056,0.00099999,86030.0,86022.0,0.01162493]
[1765820804503,0.24411396,86026.0,86020.0,0.05001839]
[1765820804716,0.01162425,86027.0,86020.0,0.05001839]
[1765820804927,0.01162439,86026.0,86020.0,0.05001839]
[1765820805136,0.01162506,86021.0,86011.0,0.05001839]
[1765820805351,0.01162574,86016.0,86006.0,0.11552005]
[1765820805574,0.00161287,86016.0,86012.0,0.01856]
[1765820805760,0.24414569,86015.0,86012.0,0.01856]
[1765820805985,0.0116256,86017.0,86012.0,0.01856]
[1765820806188,0.01162574,86016.0,86012.0,0.01856]
[1765820806405,0.23249121,86025.0,86006.0,0.00011469]
[1765820806406,0.01162641,86011.0,86006.0,0.00011469]
[1765820806616,0.01162628,86012.0,86007.0,0.01852]
[1765820806794,0.24416151,86009.0,86006.0,0.00011469]
[1765820807047,0.23253921,86007.0,86006.0,0.00011469]
[1765820807250,0.23253921,86007.0,86006.0,0.01863469]
[1765820808052,0.23253921,86007.0,86006.0,0.02163469]
[1765820808212,0.34885926,86007.0,86006.0,0.02163469]
[1765820808421,0.34885926,86007.0,86006.0,0.01863469]
[1765820808666,0.34885926,86007.0,86006.0,0.02063469]
[1765820808870,0.34885926,86007.0,86006.0,0.02163469]
[1765820810062,0.55061552,86007.0,86006.0,0.00311469]
[1765820810852,0.55061552,86007.0,86006.0,0.00111469]
[1765820811244,0.55161552,86007.0,86006.0,0.00011469]
[1765820811427,0.55361552,86007.0,86006.0,0.00011469]
[1765820811603,0.55261552,86007.0,86006.0,0.00011469]
[1765820811945,0.55061552,86007.0,86006.0,0.00011469]
[1765820812077,0.23953921,86007.0,86006.0,0.00011469]
[1765820812285,0.3439693,86007.0,86006.0,0.00011469]
[1765820812482,0.4121493,86007.0,86006.0,0.00011469]
[1765820812884,0.4081493,86007.0,86006.0,0.00011469]
[1765820813302,0.36008234,86007.0,86006.0,0.00011469]
[1765820813506,0.24553234,86007.0,86006.0,0.00011469]
[1765820813720,0.28890234,86007.0,86006.0,0.00011469]
[1765820813915,0.35908234,86007.0,86006.0,0.00011469]
[1765820814358,0.36208234,86007.0,86006.0,0.00011469]
[1765820814565,0.23753921,86007.0,86006.0,0.00011469]
[1765820815675,0.005,86007.0,86006.0,0.00011469]
[1765820816868,0.003,86007.0,86006.0,0.00011469]
[1765820817065,0.003,86007.0,86006.0,0.00211469]
[1765820817270,0.03558,86038.0,86019.0,0.23250677]
[1765820817467,0.01162466,86024.0,86019.0,0.02013287]
[1765820817668,0.01162669,86009.0,86006.0,0.00111469]
[1765820817906,0.01162641,86011.0,86007.0,0.01852]
[1765820818098,0.23253416,86009.0,86007.0,0.01852]
[1765820818326,0.23253914,86008.0,86006.0,0.00111469]
[1765820818608,0.24416085,86009.0,86007.0,0.01852]
[1765820818831,0.2325338,86009.0,86007.0,0.01852]
[1765820818987,0.2325365,86008.0,86007.0,0.01852]
[1765820819597,0.2789065,86008.0,86006.0,0.00111469]
[1765820819860,0.23087005,86007.0,86006.0,0.00011469]
[1765820820286,0.23087005,86007.0,86006.0,0.00111469]
[1765820820749,0.01163182,85971.0,85964.0,0.01163277]
[1765820820948,0.00099999,85970.0,85959.0,0.01163345]
[1765820821158,0.00099999,85970.0,85965.0,0.01852]
[1765820821159,0.11632005,85969.0,85965.0,0.01852]
[1765820821328,0.01163196,85970.0,85965.0,0.01852]
[1765820821329,0.01163196,85970.0,85965.0,0.03015264]
[1765820821489,0.11632005,85971.0,85967.0,0.01163237]
[1765820821689,0.11632005,85971.0,85965.0,0.03015264]
[1765820822057,0.96061452,86000.0,85964.0,0.01163277]
[1765820822058,0.23265282,85965.0,85964.0,0.003]
[1765820822212,0.39569287,85965.0,85964.0,0.003]
[1765820822414,0.46601287,85965.0,85964.0,0.003]
[1765820822990,0.11632005,85960.0,85959.0,0.00011454]
[1765820824191,0.23266398,85961.0,85959.0,0.00111454]
[1765820824330,0.03707,85966.0,85959.0,0.00111454]
[1765820824331,0.24426625,85972.0,85966.0,0.0116325]
[1765820824538,0.24427747,85968.0,85967.0,0.01856]
[1765820824757,0.26973635,85960.0,85959.0,0.00111454]
[1765820824961,0.31645635,85960.0,85959.0,0.00111454]
[1765820825157,0.5030964,85960.0,85959.0,0.00111454]
[1765820825508,0.5030964,85960.0,85959.0,0.00211454]
[1765820826094,0.5030964,85960.0,85959.0,0.00111454]
[1765820826782,0.4327764,85960.0,85959.0,0.00211454]
[1765820826969,0.5030964,85960.0,85959.0,0.00211454]
[1765820827174,0.4327764,85960.0,85959.0,0.00211454]
[1765820827416,0.4327764,85960.0,85959.0,0.00111454]
[1765820827669,0.4327764,85960.0,85959.0,0.00211454]
[1765820828560,0.5030964,85960.0,85959.0,0.00211454]
[1765820828770,0.39676948,85960.0,85959.0,0.00211454]
[1765820828943,0.5030964,85960.0,85959.0,0.00211454]
[1765820829766,0.5030964,85960.0,85959.0,0.00111454]
[1765820829956,0.5050964,85960.0,85959.0,0.00111454]
[1765820830337,0.5050964,85960.0,85959.0,0.00011454]
[1765820830682,0.5080964,85960.0,85959.0,0.00011454]
[1765820835164,0.32145635,85960.0,85959.0,0.00011454]
[1765820835369,0.39177635,85960.0,85959.0,0.00011454]
[1765820835579,0.5080964,85960.0,85959.0,0.00011454]
[1765820835779,0.50803788,85960.0,85959.0,0.00011454]
[1765820835984,0.50603788,85960.0,85959.0,4.54e-06]
[1765820836160,0.23272862,85937.0,85936.0,0.01856]
[1765820836344,0.23272862,85937.0,85936.0,0.01894252]
[1765820837999,0.38821662,85937.0,85936.0,0.00238252]
[1765820838192,0.38821662,85937.0,85906.0,0.23281072]
[1765820838193,0.23277467,85920.0,85906.0,0.23281072]
[1765820838338,0.34909472,85920.0,85913.0,0.01856]
[1765820838957,0.23277467,85920.0,85915.0,0.01183941]
[1765820839196,0.23277428,85921.0,85916.0,0.23298465]
[1765820839407,0.01163778,85927.0,85919.0,0.00181287]
[1765820839620,0.01163846,85922.0,85919.0,0.00181287]
[1765820839821,0.24440396,85924.0,85919.0,0.01345173]
[1765820839968,0.24440538,85923.0,85919.0,0.24622809]
[1765820840177,0.23277222,85921.0,85919.0,0.00181287]
[1765820840614,0.11632005,85920.0,85919.0,0.00181287]
[1765820840864,0.11632005,85920.0,85919.0,0.0002]
[1765820841286,0.23336005,85920.0,85919.0,0.0002]
[1765820841483,0.23277222,85921.0,85919.0,0.0002]
[1765820841484,0.23277418,85921.0,85919.0,0.0002]
[1765820841721,0.23277467,85920.0,85919.0,0.0002]
[1765820842108,0.23377467,85920.0,85919.0,0.0002]
[1765820843411,0.35081467,85920.0,85919.0,0.0002]
[1765820843648,0.3608078,85920.0,85919.0,0.0002]
[1765820844877,0.3608078,85920.0,85894.0,0.0002]
[1765820844878,0.34914078,85903.0,85894.0,0.0002]
[1765820845111,0.50325078,85903.0,85902.0,0.00031482]
[1765820845681,0.34914078,85903.0,85902.0,0.00031482]
[1765820846186,0.23282073,85903.0,85902.0,0.00031482]
[1765820846384,0.01163886,85919.0,85913.0,0.01163968]
[1765820846589,0.04870886,85919.0,85916.0,0.01163927]
[1765820846742,0.03707,85919.0,85916.0,0.01163927]
[1765820846944,0.04870886,85919.0,85912.0,0.01163981]
[1765820847154,0.04870886,85919.0,85909.0,0.01164022]
[1765820847155,0.01163954,85914.0,85909.0,0.01164022]
[1765820847311,0.01163954,85914.0,85907.0,0.01164049]
[1765820847312,0.23280315,85910.0,85907.0,0.01164049]
[1765820847532,0.01164063,85906.0,85903.0,0.24446013]
[1765820847739,0.00099999,85910.0,85902.0,0.03212886]
[1765820847740,0.001,85903.0,85902.0,0.25169826]
[1765820847993,0.001,85903.0,85902.0,0.25331113]
[1765820848166,0.01164063,85906.0,85903.0,0.01164103]
[1765820848465,0.23282073,85903.0,85902.0,0.00192769]
[1765820849657,0.23282073,85903.0,85902.0,0.00031482]
[1765820849861,0.46618078,85903.0,85902.0,0.00031482]
[1765820850340,0.23284242,85895.0,85894.0,0.0002]
[1765820850562,0.50184247,85895.0,85894.0,0.00031462]
[1765820850936,0.79254247,85895.0,85894.0,0.00031462]
[1765820851717,0.79354247,85895.0,85894.0,0.00031462]
[1765820852572,0.26806242,85895.0,85894.0,0.00031462]
[1765820852773,0.35112242,85895.0,85894.0,0.00031462]
[1765820853049,0.36111555,85895.0,85894.0,0.00031462]
[1765820853423,0.23285055,85892.0,85880.0,0.0002]
[1765820853788,0.34920043,85881.0,85880.0,0.0002]
[1765820853956,0.43137043,85881.0,85880.0,0.0002]
[1765820854162,0.50057043,85881.0,85880.0,0.0002]
[1765820856881,0.50057043,85881.0,85880.0,0.0012]
[1765820857143,0.08217,85881.0,85880.0,0.23408309]
[1765820857348,0.01164212,85895.0,85891.0,0.2328525]
[1765820857654,0.28855513,85900.0,85896.0,0.23283971]
[1765820858005,0.0692,85909.0,85896.0,0.23283971]
[1765820858006,0.01164049,85907.0,85903.0,0.01164103]
[1765820858255,0.01164049,85907.0,85896.0,0.01325485]
[1765820858256,0.01164157,85899.0,85896.0,0.00161287]
[1765820858449,0.11632005,85901.0,85899.0,0.23283158]
[1765820858582,0.01164076,85905.0,85899.0,0.00161287]
[1765820858982,0.2328154,85905.0,85901.0,0.0116413]
[1765820859197,0.01164063,85906.0,85899.0,0.00161287]
[1765820859198,0.23282666,85902.0,85899.0,0.00161287]
[1765820859398,0.01164117,85902.0,85899.0,0.01325444]
[1765820859601,0.11632005,85905.0,85902.0,0.24446335]
[1765820860024,0.24444997,85908.0,85902.0,0.24446335]
[1765820860025,0.24444997,85908.0,85905.0,0.23281523]
[1765820860271,0.24444997,85908.0,85905.0,0.23281448]
[1765820860550,0.01164185,85897.0,85892.0,0.01164252]
[1765820860694,0.00011448,85897.0,85895.0,0.23284163]
[1765820860892,0.24459407,85897.0,85893.0,0.01856]
[1765820861100,0.23284355,85895.0,85893.0,0.01856]
[1765820861417,0.24459407,85897.0,85893.0,0.03020239]
[1765820861418,0.01175633,85897.0,85893.0,0.03020239]
[1765820861619,0.00011448,85897.0,85895.0,0.3483619]
[1765820861849,0.00011448,85897.0,85896.0,0.02328397]
[1765820862021,0.00011448,85897.0,85896.0,0.00161287]
[1765820862671,0.00011448,85897.0,85896.0,0.02489684]
[1765820862880,0.00011448,85897.0,85896.0,0.19043528]
[1765820863431,0.00011448,85897.0,85896.0,0.19143528]
[1765820863637,0.00011448,85897.0,85896.0,0.07591523]
[1765820864453,0.00011448,85897.0,85896.0,0.05263126]
[1765820864687,0.00011448,85897.0,85896.0,0.07119126]
[1765820864893,0.00011448,85897.0,85896.0,0.07219126]
[1765820865367,0.00011448,85897.0,85896.0,0.02217287]
[1765820865599,0.00011448,85897.0,85896.0,0.00361287]
[1765820867281,0.00011448,85897.0,85896.0,0.23645258]
[1765820867515,0.00011448,85897.0,85896.0,0.00361287]
[1765820867739,0.08155349,85898.0,85896.0,0.00361287]
[1765820867928,0.24447351,85899.0,85896.0,0.00361287]
[1765820868086,0.01164144,85900.0,85896.0,0.23645146]
[1765820868270,0.01164022,85909.0,85897.0,0.01164185]
[1765820868473,0.232837,85897.0,85896.0,0.00361287]
[1765820868727,0.232837,85897.0,85896.0,0.00261287]
[1765820868930,0.232837,85897.0,85896.0,0.00361287]
[1765820869131,0.232837,85897.0,85896.0,0.00261287]
[1765820869328,0.232837,85897.0,85896.0,0.00161287]
[1765820869528,0.232837,85897.0,85896.0,0.00361287]
[1765820869937,0.232837,85897.0,85896.0,0.00261287]
[1765820870185,0.36079325,85899.0,85896.0,0.00261287]
[1765820870370,0.23283684,85898.0,85896.0,0.00361287]
[1765820870577,0.232837,85897.0,85896.0,0.00361287]
[1765820870978,0.232837,85897.0,85896.0,0.00261287]
[1765820871284,0.350117,85897.0,85896.0,0.001]
[1765820871825,0.46643705,85897.0,85896.0,0.001]
[1765820872032,0.34915705,85897.0,85896.0,0.001]
[1765820872241,0.34915705,85897.0,85881.0,0.02328803]
[1765820872242,0.01164361,85884.0,85881.0,0.02328803]
[1765820872438,0.28095766,85882.0,85881.0,0.00011448]
[1765820872712,0.39727771,85882.0,85881.0,0.00011448]
[1765820872898,0.46647771,85882.0,85881.0,0.00011448]
[1765820873866,0.46647771,85882.0,85881.0,0.00211448]
[1765820874073,0.46647771,85882.0,85881.0,0.00111448]
[1765820874271,0.39727771,85882.0,85881.0,0.00111448]
[1765820874472,0.34919771,85882.0,85881.0,0.00111448]
[1765820875089,0.23287766,85882.0,85881.0,0.00111448]
[1765820875301,0.35015766,85882.0,85881.0,0.00011448]
[1765820875513,0.40831768,85882.0,85881.0,0.00011448]
[1765820875716,0.35015766,85882.0,85881.0,0.00011448]
[1765820875982,0.39727771,85882.0,85881.0,0.00011448]
[1765820876272,0.23287766,85882.0,85881.0,0.00011448]
[1765820876807,0.46647771,85882.0,85881.0,0.00011448]
[1765820877129,0.34919771,85882.0,85881.0,0.00011448]
[1765820877330,0.23287766,85882.0,85881.0,0.00011448]
[1765820877983,0.46647771,85882.0,85881.0,0.00011448]
[1765820878965,0.28095766,85882.0,85881.0,0.00011448]
[1765820879171,0.39727771,85882.0,85881.0,0.00011448]
[1765820879394,0.28095766,85882.0,85881.0,0.00011448]
[1765820879772,0.39727771,85882.0,85881.0,0.00011448]
[1765820879979,0.28095766,85882.0,85881.0,0.00011448]
[1765820880795,0.39727771,85882.0,85881.0,0.00011448]
[1765820880998,0.46647771,85882.0,85881.0,0.00011448]
[1765820881516,0.35015766,85882.0,85881.0,0.00011448]
[1765820881905,0.46647771,85882.0,85881.0,0.00011448]
[1765820882100,0.35015766,85882.0,85881.0,0.00011448]
[1765820882309,0.23287766,85882.0,85881.0,0.00011448]
[1765820882508,0.35023766,85882.0,85881.0,0.00011448]
[1765820882813,0.23287766,85882.0,85881.0,0.00011448]
[1765820883155,0.23287755,85883.0,85881.0,0.00172735]
[1765820883337,0.24451619,85884.0,85881.0,0.1172474]
[1765820883548,0.01164361,85884.0,85881.0,0.11663453]
[1765820883757,0.46562144,85907.0,85881.0,0.11663453]
[1765820883758,0.01164293,85889.0,85883.0,0.00161287]
[1765820883957,0.01164293,85889.0,85881.0,0.11663453]
[1765820883958,0.23287766,85882.0,85881.0,0.01967448]
[1765820884395,0.01164252,85892.0,85881.0,0.02128735]
[1765820884591,0.01164212,85895.0,85889.0,0.01164293]
[1765820884796,0.2328126,85906.0,85896.0,0.01164198]
[1765820885007,0.01164171,85898.0,85897.0,0.01856]
[1765820886555,0.01264171,85898.0,85897.0,0.01856]
[1765820886905,0.001,85898.0,85897.0,0.01856]
[1765820887879,0.001,85898.0,85880.0,0.16573844]
[1765820887880,0.23287766,85882.0,85880.0,0.0002]
[1765820888078,0.01164266,85891.0,85884.0,0.01164361]
[1765820888206,0.01164198,85896.0,85892.0,0.24449239]
[1765820888402,0.23284339,85895.0,85893.0,0.01856]
[1765820888653,0.01164361,85884.0,85880.0,0.0002]
[1765820888812,0.01164334,85886.0,85883.0,0.23287443]
[1765820889013,0.01164347,85885.0,85882.0,0.03020388]
[1765820889224,0.01164279,85890.0,85887.0,0.0116432]
[1765820889424,0.01164252,85892.0,85888.0,0.23286093]
[1765820889796,0.2328579,85890.0,85888.0,0.00161287]
[1765820890308,0.24449479,85892.0,85889.0,0.01164293]
[1765820890436,0.24449675,85891.0,85888.0,0.00161287]
[1765820890637,0.23285681,85890.0,85888.0,0.00161287]
[1765820891041,0.23287495,85883.0,85882.0,0.002]
[1765820891454,0.23287495,85883.0,85881.0,0.01867448]
[1765820892096,0.23275967,85883.0,85882.0,0.002]
[1765820892272,0.23275967,85883.0,85882.0,0.003]
[1765820892673,0.23275967,85883.0,85881.0,0.02028735]
[1765820892881,0.23275967,85883.0,85881.0,0.02228735]
[1765820893993,0.24450771,85887.0,85884.0,0.01164361]
[1765820894266,0.24450028,85890.0,85885.0,0.01164347]
[1765820894585,0.00099999,85900.0,85896.0,0.01164198]
[1765820894792,0.01164076,85905.0,85901.0,0.0116413]
[1765820894968,0.23282789,85901.0,85897.0,0.03020185]
[1765820895109,0.24446486,85902.0,85897.0,0.03181472]
[1765820895543,0.01163995,85911.0,85907.0,0.01164049]
[1765820895749,0.01163995,85911.0,85898.0,0.23283276]
[1765820895750,0.01164117,85902.0,85899.0,0.24447211]
[1765820895954,0.01164117,85902.0,85897.0,0.01325472]
[1765820895955,0.01164144,85900.0,85897.0,0.00161287]
[1765820896204,0.23283158,85899.0,85898.0,0.01856]
[1765820896599,0.01164063,85906.0,85903.0,0.01164103]
[1765820896827,0.23282073,85903.0,85900.0,0.24446923]
[1765820896985,0.23281603,85905.0,85900.0,0.01164144]
[1765820897316,0.23281603,85905.0,85901.0,0.23282616]
[1765820897317,0.23281848,85904.0,85901.0,0.23282616]
[1765820897491,0.23283158,85899.0,85898.0,0.02017287]
[1765820897671,0.01164103,85903.0,85899.0,0.24447315]
[1765820897871,0.01164117,85902.0,85898.0,0.02017287]
[1765820898208,0.0116413,85901.0,85898.0,0.26464873]
[1765820898442,0.24446817,85901.0,85898.0,0.26464873]
[1765820898560,0.24446547,85902.0,85899.0,0.23283157]
[1765820898993,0.01164117,85902.0,85899.0,0.00161287]
[1765820899206,0.24546386,85903.0,85899.0,0.23444355]
[1765820899523,0.24546386,85903.0,85899.0,0.00161287]
[1765820899524,0.23282616,85901.0,85899.0,0.00161287]
[1765820899725,0.23282887,85900.0,85899.0,0.00161287]
[1765820900068,0.23282616,85901.0,85899.0,0.00161287]
[1765820900195,0.23282887,85900.0,85899.0,0.02017287]
[1765820901375,0.23282887,85900.0,85899.0,0.00161287]
[1765820901548,0.23282887,85900.0,85899.0,0.02017287]
[1765820901699,0.23282302,85903.0,85899.0,0.38016341]
[1765820901910,0.01163927,85916.0,85906.0,0.2328126]
[1765820902140,0.01163886,85919.0,85911.0,0.23279905]
[1765820902345,0.00011478,85919.0,85916.0,0.01163927]
[1765820902517,0.00011478,85919.0,85912.0,0.04183963]
[1765820902518,0.24442453,85917.0,85914.0,0.12715959]
[1765820902869,0.00011478,85919.0,85916.0,0.23278538]
[1765820903094,0.011639,85918.0,85915.0,0.01163941]
[1765820903303,0.01175364,85919.0,85918.0,0.28279848]
[1765820903304,0.00011478,85919.0,85918.0,0.28279848]
[1765820903526,0.00011478,85919.0,85918.0,0.16715131]
[1765820903758,0.23289216,85919.0,85918.0,0.05163126]
[1765820903986,0.00011478,85919.0,85918.0,0.30297135]
[1765820904226,0.00011478,85919.0,85918.0,0.07019126]
[1765820904480,0.23589216,85919.0,85918.0,0.02017287]
[1765820904702,0.01163927,85916.0,85908.0,0.01164035]
[1765820904923,0.24442576,85916.0,85910.0,0.05001839]
[1765820905150,0.24442203,85917.0,85914.0,0.01163954]
[1765820905377,0.23279386,85913.0,85910.0,0.2960712]
[1765820905582,0.011639,85918.0,85912.0,0.01163981]
[1765820905819,0.00011478,85919.0,85917.0,0.23278221]
[1765820906053,0.00011478,85919.0,85914.0,0.24442991]
[1765820906054,0.01163914,85917.0,85914.0,0.24442991]
[1765820906278,0.00011478,85919.0,85917.0,0.23278178]
[1765820906515,0.00011478,85919.0,85916.0,0.24442444]
[1765820906516,0.2445329,85919.0,85916.0,0.24442444]
[1765820906771,0.00011478,85919.0,85918.0,0.23278009]
[1765820906982,0.00011478,85919.0,85916.0,0.01163927]
[1765820907212,0.00011478,85919.0,85918.0,0.23278009]
[1765820907672,0.00011478,85919.0,85918.0,0.28441135]
[1765820908737,0.00011478,85919.0,85918.0,0.3999314]
[1765820909697,0.00011478,85919.0,85918.0,0.51612603]
[1765820910036,0.00011478,85919.0,85918.0,0.5431298]
[1765820910266,0.00011478,85919.0,85918.0,0.51712603]
[1765820910485,0.00011478,85919.0,85918.0,0.29540443]
[1765820910716,0.00011478,85919.0,85918.0,0.31496443]
[1765820910917,0.00011478,85919.0,85918.0,0.31396443]
[1765820911120,0.00011478,85919.0,85918.0,0.31296443]
[1765820911251,0.00111478,85919.0,85918.0,0.32796443]
[1765820911452,0.00011478,85919.0,85918.0,0.31996443]
[1765820911858,0.00111478,85919.0,85918.0,0.31896443]
[1765820913544,0.00111478,85919.0,85918.0,0.32496443]
[1765820913763,0.00111478,85919.0,85918.0,0.25638604]
[1765820914031,0.00111478,85919.0,85918.0,0.27494604]
[1765820914155,0.00111478,85919.0,85918.0,0.32496443]
[1765820914589,0.00011478,85919.0,85918.0,0.31296443]
[1765820914771,0.00011478,85919.0,85918.0,0.28441135]
[1765820914982,0.00011478,85919.0,85918.0,0.32096443]
[1765820915179,0.00011478,85919.0,85918.0,0.29840443]
[1765820915388,0.00011478,85919.0,85918.0,0.08418434]
[1765820915592,0.00111478,85919.0,85918.0,0.09018434]
[1765820915790,0.00111478,85919.0,85918.0,0.07162434]
[1765820916030,0.00111478,85919.0,85918.0,0.09018434]
[1765820916233,0.00111478,85919.0,85918.0,0.07619126]
[1765820916671,0.00111478,85919.0,85918.0,0.08119126]
[1765820916959,0.00011478,85919.0,85918.0,0.07019126]
[1765820917104,0.00111478,85919.0,85918.0,0.07419126]
[1765820917301,0.00111478,85919.0,85918.0,0.07819126]
[1765820917733,0.00111478,85919.0,85918.0,0.21698931]
[1765820917939,0.00111478,85919.0,85918.0,0.10146926]
[1765820918211,0.00111478,85919.0,85918.0,0.21698931]
[1765820919454,0.00111478,85919.0,85918.0,0.25010872]
[1765820919675,0.00111478,85919.0,85918.0,0.34211131]
[1765820921219,0.23369403,85950.0,85918.0,0.34211131]
[1765820921220,0.23268361,85954.0,85951.0,0.23269064]
[1765820921498,0.2326853,85953.0,85952.0,0.0418288]
[1765820921702,0.2326853,85953.0,85952.0,0.01856]
[1765820924197,0.00038276,85954.0,85952.0,0.01856]
[1765820924376,0.2326853,85953.0,85952.0,0.01856]
[1765820925583,0.23306598,85954.0,85952.0,0.01856]
[1765820926032,0.00038276,85954.0,85952.0,0.01856]
[1765820926275,0.00038276,85954.0,85953.0,0.2326853]
[1765820926630,0.00038276,85954.0,85953.0,0.39983661]
[1765820927686,0.00138276,85954.0,85953.0,0.28431656]
[1765820928219,0.00038276,85954.0,85953.0,0.05163126]
[1765820928347,0.00138276,85954.0,85953.0,0.07019126]
[1765820928553,0.00138276,85954.0,85953.0,0.18571131]
[1765820928750,0.00138276,85954.0,85953.0,0.16715131]
[1765820928948,0.01301688,85954.0,85953.0,0.01856]
[1765820929195,0.24569947,85954.0,85953.0,0.01856]
[1765820929424,0.24569947,85954.0,85948.0,0.05001839]
[1765820929425,0.0116344,85952.0,85948.0,0.05001839]
[1765820929605,0.01301688,85954.0,85950.0,0.05001839]
[1765820929781,0.00138276,85954.0,85951.0,0.01163453]
[1765820929994,0.00138276,85954.0,85953.0,0.2326853]
[1765820930199,0.00138276,85954.0,85953.0,0.39983661]
[1765820930574,0.00038276,85954.0,85953.0,0.39983661]
[1765820930989,0.01163291,85963.0,85953.0,0.39983661]
[1765820930990,0.23265571,85964.0,85961.0,0.23266364]
[1765820931193,0.24429114,85963.0,85962.0,0.01856]
[1765820932544,0.01163291,85963.0,85962.0,0.01856]
[1765820933167,0.00211473,85964.0,85963.0,0.23265823]
[1765820933420,0.00011473,85964.0,85963.0,0.2342711]
[1765820934274,0.00011473,85964.0,85963.0,0.11713292]
[1765820934477,0.00011473,85964.0,85963.0,0.34979115]
[1765820934741,0.00211473,85964.0,85963.0,0.34979115]
[1765820935480,0.00211473,85964.0,85963.0,0.39980954]
[1765820935687,0.00211473,85964.0,85963.0,0.48577358]
[1765820936043,0.00211473,85964.0,85963.0,0.48677358]
[1765820936044,0.00011473,85964.0,85963.0,0.48677358]
[1765820936189,0.00011473,85964.0,85963.0,0.48777358]
[1765820936400,0.00011473,85964.0,85963.0,0.48677358]
[1765820936834,0.00011473,85964.0,85963.0,0.48777358]
[1765820937046,0.00011473,85964.0,85963.0,0.48677358]
[1765820937246,0.00011473,85964.0,85963.0,0.48577358]
[1765820937459,0.00011473,85964.0,85963.0,0.49177358]
[1765820937799,0.00011473,85964.0,85963.0,0.49077358]
[1765820938383,0.00011473,85964.0,85963.0,0.49477358]
[1765820940388,0.00011473,85964.0,85963.0,0.51329358]
[1765820941709,0.00011473,85964.0,85963.0,0.37731115]
[1765820942069,0.00011473,85964.0,85963.0,0.14465292]
[1765820942266,0.00011473,85964.0,85963.0,0.42732954]
[1765820942479,0.00011473,85964.0,85963.0,0.31180949]
[1765820942751,0.00011473,85964.0,85963.0,0.42232954]
[1765820943032,0.00011473,85964.0,85963.0,0.42332954]
[1765820943205,0.00011473,85964.0,85963.0,0.42232954]
[1765820943602,0.00011473,85964.0,85963.0,0.42032954]
[1765820944013,0.00011473,85964.0,85963.0,0.42132954]
[1765820944398,0.00011473,85964.0,85963.0,0.42032954]
[1765820944787,0.00011473,85964.0,85963.0,0.40380954]
[1765820944984,0.00011473,85964.0,85963.0,0.42232954]
[1765820945992,0.00011473,85964.0,85963.0,0.42032954]
[1765820947564,0.0004,85982.0,85981.0,0.28262792]
[1765820947742,0.0004,85982.0,85981.0,0.41828084]
[1765820948659,0.0004,85982.0,85981.0,0.5064342]
[1765820948868,0.0004,85982.0,85981.0,0.5084342]
[1765820949374,0.0004,85982.0,85981.0,0.5104342]
[1765820951185,0.0004,85982.0,85981.0,0.42228084]
[1765820951617,0.0004,85982.0,85981.0,0.18967131]
[1765820951816,0.23300682,85982.0,85981.0,0.00561287]
[1765820952021,0.23300682,85982.0,85981.0,0.004]
[1765820952263,0.0004,85982.0,85981.0,0.02252]
[1765820952465,0.0004,85982.0,85981.0,0.30676079]
[1765820952614,0.0004,85982.0,85981.0,0.42028084]
[1765820953415,0.0004,85982.0,85981.0,0.41828084]
[1765820953862,0.0004,85982.0,85981.0,0.41928084]
[1765820954217,0.0004,85982.0,85981.0,0.41828084]
[1765820954623,0.0004,85982.0,85981.0,0.42028084]
[1765820954955,0.0004,85982.0,85981.0,0.42128084]
[1765820955360,0.0004,85982.0,85981.0,0.53747547]
[1765820955567,0.0004,85982.0,85981.0,0.42128084]
[1765820955973,0.23252535,86013.0,86008.0,0.01162682]
[1765820956131,0.23264004,86013.0,86009.0,0.01852]
[1765820956322,0.00011469,86013.0,86009.0,0.01852]
[1765820956624,0.23263869,86013.0,86010.0,0.01162655]
[1765820956824,0.23263869,86013.0,86011.0,0.01852]
[1765820956825,0.24415239,86012.0,86011.0,0.01852]
[1765820957030,0.00011469,86013.0,86011.0,0.25104763]
[1765820957824,0.00411469,86013.0,86011.0,0.25104763]
[1765820958023,0.00011469,86013.0,86011.0,0.25104763]
[1765820958456,0.00411469,86013.0,86011.0,0.01852]
[1765820958681,0.23263924,86013.0,86011.0,0.01852]
[1765820959090,0.23563924,86013.0,86011.0,0.01852]
[1765820959348,0.23563924,86013.0,85988.0,0.01162952]
[1765820959349,0.23256732,85997.0,85995.0,0.11552005]
[1765820959549,0.01162817,85998.0,85996.0,0.01852]
[1765820960001,0.01162966,85987.0,85978.0,0.24424709]
[1765820960174,0.2325948,85987.0,85982.0,0.01852]
[1765820960375,0.2325948,85987.0,85970.0,0.69189364]
[1765820960376,0.01162939,85989.0,85986.0,0.24422491]
[1765820960615,0.01162925,85990.0,85987.0,0.23259329]
[1765820960850,0.0116298,85986.0,85983.0,0.01852]
[1765820961199,0.23259875,85985.0,85983.0,0.01852]
[1765820961400,0.01162952,85988.0,85984.0,0.23260077]
[1765820961566,0.2442178,85989.0,85984.0,0.01163007]
[1765820961766,0.2442178,85989.0,85983.0,0.01852]
[1765820961767,0.0116298,85986.0,85983.0,0.01852]
[1765820961974,0.23259925,85985.0,85983.0,0.01852]
[1765820962390,0.23259925,85985.0,85975.0,0.24425578]
[1765820962391,0.01163047,85981.0,85975.0,0.01163128]
[1765820962620,0.23261323,85980.0,85976.0,0.03015115]
[1765820962785,0.23260749,85982.0,85978.0,0.24424755]
[1765820962988,0.23261235,85980.0,85977.0,0.24425094]
[1765820963214,0.01163047,85981.0,85979.0,0.23261463]
[1765820963412,0.01163074,85979.0,85976.0,0.01852]
[1765820963648,0.23262035,85977.0,85976.0,0.01852]
[1765820963855,0.24424571,85979.0,85976.0,0.01852]
[1765820964230,0.03568,85992.0,85976.0,0.01852]
[1765820964231,0.24422536,85987.0,85984.0,0.23260104]
[1765820964434,0.01162993,85985.0,85981.0,0.01163047]
[1765820965051,0.07549377,85985.0,85983.0,0.23260394]
[1765820965269,0.0116298,85986.0,85984.0,0.23260038]
[1765820965470,0.23260141,85984.0,85983.0,0.00161287]
[1765820965837,0.23260141,85984.0,85976.0,0.01852]
[1765820965838,0.24425108,85979.0,85976.0,0.01852]
[1765820966017,0.24422863,85985.0,85978.0,0.01163088]
[1765820966018,0.01163007,85984.0,85978.0,0.01163088]
[1765820966222,0.01163074,85979.0,85976.0,0.01852]
[1765820966522,0.23261893,85978.0,85976.0,0.01852]
[1765820966756,0.23262035,85977.0,85976.0,0.01852]
[1765820966955,0.04731074,85979.0,85976.0,0.01852]
[1765820967162,0.23262035,85977.0,85976.0,0.01852]
[1765820967367,0.24424013,85981.0,85977.0,0.23262035]
[1765820967547,0.23262035,85977.0,85976.0,0.01952]
[1765820967949,0.34992035,85977.0,85976.0,0.001]
[1765820968147,0.23262846,85974.0,85973.0,0.01852]
[1765820968372,0.01163304,85962.0,85959.0,0.24430247]
[1765820968553,0.24429492,85962.0,85960.0,0.01852]
[1765820968767,0.23266364,85961.0,85960.0,0.01852]
[1765820969992,0.23266364,85961.0,85960.0,0.01952]
[1765820970488,0.35316364,85961.0,85960.0,0.001]